bitfinex/quotes_ETHUSD_20251110
["timestamp","ask_amount","ask_price","bid_price","bid_amount"]
[1762818559411,4.68526287,3577.7,3577.6,0.002]
[1762818560422,4.65713096,3577.7,3577.6,0.002]
[1762818562355,4.65713096,3577.7,3576.9,0.002]
[1762818562356,4.0553508,3577.0,3576.9,0.002]
[1762818562513,4.0553508,3577.0,3575.6,0.462]
[1762818562514,2.7966552,3575.7,3575.6,0.002]
[1762818563018,2.7966552,3575.7,3575.6,0.4889]
[1762818563219,2.79590707,3576.7,3575.6,0.9489]
[1762818563220,0.4586,3576.7,3575.6,0.9489]
[1762818563429,0.08743914,3576.6,3575.8,0.4869]
[1762818563611,2.79649878,3575.9,3575.8,0.4869]
[1762818563960,1.259712,3577.4,3576.6,0.6831]
[1762818564113,2.79587329,3576.7,3576.6,0.6831]
[1762818564313,0.08743084,3576.7,3576.6,0.6831]
[1762818564535,2.88330413,3576.7,3576.6,1.1431]
[1762818564807,0.08743084,3576.7,3576.6,1.1431]
[1762818565035,2.88330413,3576.7,3576.6,1.1431]
[1762818566350,2.79587329,3576.7,3576.6,1.1431]
[1762818567269,2.88329214,3576.7,3576.6,1.1431]
[1762818569956,2.88329214,3576.7,3576.6,0.4869]
[1762818570117,2.88329214,3576.7,3575.7,4.84456447]
[1762818570118,2.79610781,3576.4,3575.9,1.0]
[1762818570324,2.79642521,3576.0,3575.8,0.4959]
[1762818570820,2.79642521,3576.0,3575.9,0.4529]
[1762818571143,2.79662662,3575.8,3575.6,0.002]
[1762818571318,2.79662662,3575.8,3575.6,0.4979]
[1762818571521,2.79656383,3575.9,3575.7,0.4529]
[1762818571943,2.79656383,3575.9,3575.8,0.4529]
[1762818572157,2.88399708,3575.9,3575.8,0.4529]
[1762818572356,2.88399708,3575.9,3575.8,0.4549]
[1762818572521,2.79656383,3575.9,3575.8,0.9508]
[1762818572919,2.79656383,3575.9,3575.8,0.4549]
[1762818572920,2.88399708,3575.9,3575.8,0.4549]
[1762818573130,2.96749708,3575.9,3575.8,0.002]
[1762818575152,2.88399708,3575.9,3575.8,0.002]
[1762818576246,2.79656383,3575.9,3575.8,0.002]
[1762818577464,2.88386383,3575.9,3575.8,0.002]
[1762818578165,2.79656383,3575.9,3575.8,0.002]
[1762818578664,3.48934991,3575.9,3575.8,0.002]
[1762818578965,4.06402189,3575.9,3575.8,0.002]
[1762818579262,3.60492189,3575.9,3575.8,0.002]
[1762818579873,4.06402189,3575.9,3575.8,0.002]
[1762818580028,4.03588998,3575.9,3575.8,0.002]
[1762818580565,3.48948998,3575.9,3575.8,0.4549]
[1762818580768,0.08744007,3575.9,3575.8,0.9508]
[1762818580936,2.79634728,3576.1,3575.8,0.9508]
[1762818581265,2.79591185,3576.7,3575.9,0.4959]
[1762818581569,2.79634238,3576.1,3576.0,0.4529]
[1762818581727,2.88378014,3576.1,3576.0,0.4529]
[1762818582064,2.88378014,3576.1,3576.0,0.9488]
[1762818585870,0.08743776,3576.1,3576.0,0.9488]
[1762818586056,2.88378014,3576.1,3576.0,0.9488]
[1762818589700,0.08743776,3576.1,3576.0,0.9488]
[1762818589991,2.88378014,3576.1,3576.0,0.9488]
[1762818590362,0.08743776,3576.1,3576.0,0.9488]
[1762818590580,0.08743776,3576.1,3576.0,2.6820175]
[1762818591370,0.08743776,3576.1,3576.0,2.7320175]
[1762818591698,0.08743776,3576.1,3576.0,5.52843808]
[1762818592254,2.79588611,3576.7,3576.1,1.0]
[1762818592601,2.79588611,3576.7,3576.6,0.636]
[1762818592756,2.88330747,3576.7,3576.6,0.636]
[1762818592955,2.88330747,3576.7,3576.6,1.1319]
[1762818596083,0.08742136,3576.7,3576.6,1.1319]
[1762818596284,0.08741599,3576.7,3576.6,1.1319]
[1762818597304,2.88328928,3576.7,3576.6,1.1319]
[1762818600289,2.88328928,3576.7,3576.5,2.9562603]
[1762818600513,0.001,3576.8,3575.7,2.9562603]
[1762818600514,2.79648553,3576.0,3575.7,2.9562603]
[1762818601113,2.79618888,3576.3,3575.9,0.9803]
[1762818601303,2.79642058,3576.0,3575.9,0.9803]
[1762818601719,2.79642058,3576.0,3575.9,0.4929]
[1762818602149,2.79642058,3576.0,3575.6,0.002]
[1762818602150,2.79649878,3575.9,3575.8,0.002]
[1762818602437,3.92200036,3575.9,3575.8,0.002]
[1762818605400,5.78421331,3575.9,3575.8,0.002]
[1762818605599,5.7560814,3575.9,3575.8,0.002]
[1762818608407,8.7123417,3575.9,3575.8,0.002]
[1762818608899,2.8827552,3575.7,3575.6,1e-08]
[1762818609103,4.53130306,3575.7,3575.6,1e-08]
[1762818609306,4.99060306,3575.7,3575.6,1e-08]
[1762818611104,4.50317115,3575.7,3575.6,1e-08]
[1762818611452,3.9006702,3575.7,3575.6,1e-08]
[1762818611967,2.88408281,3575.7,3575.6,0.49290001]
[1762818612147,0.08742761,3575.7,3575.6,0.98030001]
[1762818612314,2.79628322,3576.2,3575.6,2.36841267]
[1762818612516,2.79628322,3576.2,3576.1,0.6895]
[1762818612746,0.1826,3576.8,3576.1,0.6895]
[1762818612747,2.7958892,3576.7,3576.1,0.6895]
[1762818612920,0.08742762,3576.6,3576.3,0.4929]
[1762818613247,2.88346141,3576.5,3576.2,0.4874]
[1762818613445,2.79679512,3576.8,3576.7,0.4929]
[1762818613747,2.88421956,3576.8,3576.7,0.4929]
[1762818613965,2.97031956,3576.8,3576.1,0.1966]
[1762818614173,0.45,3576.2,3575.6,1e-08]
[1762818614313,2.7966552,3575.7,3575.6,1e-08]
[1762818614742,2.8857552,3575.7,3575.6,1e-08]
[1762818615328,0.4631,3576.7,3575.6,0.98030001]
[1762818615547,2.79657698,3575.8,3575.7,0.4929]
[1762818615745,2.88402243,3575.8,3575.7,0.9803]
[1762818616312,0.08744545,3575.8,3575.7,0.9803]
[1762818616541,2.79644815,3576.0,3575.7,0.9803]
[1762818616741,0.08744545,3575.9,3575.7,0.4929]
[1762818616946,2.7966552,3575.7,3575.6,1e-08]
[1762818617345,2.7966552,3575.7,3575.6,0.49290001]
[1762818617552,2.7966552,3575.7,3575.6,0.98030001]
[1762818617752,2.7966552,3575.7,3575.6,0.49290001]
[1762818618585,3.44207201,3575.7,3575.6,1e-08]
[1762818618753,4.01794957,3575.7,3575.6,1e-08]
[1762818619280,3.52951766,3575.7,3575.6,1e-08]
[1762818619446,3.44341766,3575.7,3575.6,0.49290001]
[1762818619642,2.88410085,3575.7,3575.6,0.98030001]
[1762818620169,0.08744565,3575.7,3575.6,0.49290001]
[1762818620363,0.08744565,3575.7,3575.6,0.98030001]
[1762818620589,2.79650315,3575.9,3575.6,0.98030001]
[1762818620760,0.0874475,3575.8,3575.6,0.48740001]
[1762818620960,0.0874475,3575.8,3575.7,0.4874]
[1762818621156,2.88402448,3575.8,3575.7,0.9803]
[1762818622476,2.88402448,3575.8,3575.7,0.4929]
[1762818622672,2.7966552,3575.7,3575.6,1e-08]
[1762818622878,3.00203271,3575.7,3575.6,1e-08]
[1762818623348,3.00203165,3575.7,3575.6,1e-08]
[1762818624587,3.42949974,3575.7,3575.6,1e-08]
[1762818626655,4.05935633,3575.7,3575.6,1e-08]
[1762818626874,5.10061056,3575.7,3575.6,1e-08]
[1762818630072,5.07247865,3575.7,3575.6,1e-08]
[1762818630410,5.07249306,3575.7,3575.6,1e-08]
[1762818630707,4.52709306,3575.7,3575.6,1e-08]
[1762818630869,4.52709306,3575.7,3575.6,0.49850001]
[1762818631075,4.52709306,3575.7,3575.6,1e-08]
[1762818633528,3.92536838,3575.7,3575.6,0.99500001]
[1762818634030,3.92536838,3575.7,3575.6,0.49850001]
[1762818634331,2.88511415,3575.7,3575.6,0.99500001]
[1762818634693,2.88511415,3575.7,3575.6,1.41469601]
[1762818635128,0.08845895,3575.7,3575.6,1.41469601]
[1762818635494,0.08845895,3575.7,3575.6,0.99500001]
[1762818636124,0.08845895,3575.7,3575.6,1.38706267]
[1762818636308,0.08845895,3575.7,3575.6,0.99500001]
[1762818636709,0.08845895,3575.7,3575.6,1.38706267]
[1762818637011,0.001,3575.7,3575.6,1.38706267]
[1762818638316,0.001,3575.7,3575.6,0.99500001]
[1762818639409,2.7976552,3575.7,3575.6,0.99500001]
[1762818640241,2.88509435,3575.7,3575.6,0.99500001]
[1762818640816,0.08843915,3575.7,3575.6,0.99500001]
[1762818641013,0.001,3575.7,3575.6,0.99500001]
[1762818641241,0.08843751,3575.7,3575.6,0.99500001]
[1762818642608,0.001,3575.7,3575.6,1.19490001]
[1762818642860,0.001,3575.7,3575.6,1.22286734]
[1762818643385,0.001,3575.7,3575.6,2.61493]
[1762818643586,0.001,3575.7,3575.6,2.58696267]
[1762818644150,0.001,3575.7,3575.6,7.12999542]
[1762818644350,0.001,3575.7,3575.6,10.88423242]
[1762818644886,0.001,3575.7,3575.6,10.56720442]
[1762818645039,0.001,3575.7,3575.6,7.12999542]
[1762818651176,0.001,3575.7,3575.6,6.70684942]
[1762818651377,0.001,3575.7,3575.6,1.75821201]
[1762818651757,0.001,3575.7,3575.6,2.25471201]
[1762818653853,0.001,3575.7,3575.6,3.25471201]
[1762818654812,0.001,3575.7,3575.6,6.05144542]
[1762818655972,0.001,3575.7,3575.6,3.25471201]
[1762818656173,0.001,3575.7,3575.6,7.01344614]
[1762818656375,0.001,3575.7,3575.6,7.43659214]
[1762818658167,0.001,3575.7,3575.6,4.14335873]
[1762818658367,0.001,3575.7,3575.6,1.75821201]
[1762818658971,0.001,3575.7,3575.6,2.24861201]
[1762818659875,0.001,3575.7,3575.6,1.75821201]
[1762818661934,0.0901,3575.7,3575.6,1.25971201]
[1762818662134,0.001,3575.7,3575.6,1.73781201]
[1762818664720,0.001,3575.7,3575.6,1.25971201]
[1762818665890,0.0901,3575.7,3575.6,1.25971201]
[1762818666644,0.0901,3575.7,3575.6,1e-08]
[1762818666645,3.3439552,3575.7,3575.6,1e-08]
[1762818666936,4.06356057,3575.7,3575.6,1e-08]
[1762818670916,8.04793159,3575.7,3575.6,1e-08]
[1762818671115,9.27951168,3575.7,3575.6,1e-08]
[1762818672029,10.03164902,3575.7,3575.6,1e-08]
[1762818672197,9.27951168,3575.7,3575.6,1e-08]
[1762818674938,6.33151168,3575.7,3575.6,1e-08]
[1762818675632,2.79704631,3575.2,3575.1,0.01]
[1762818675819,3.28231629,3575.2,3575.1,0.01]
[1762818676134,3.73861629,3575.2,3575.1,0.01]
[1762818681057,3.73861629,3575.2,3575.1,0.012]
[1762818682844,3.71048438,3575.2,3575.1,0.012]
[1762818683044,0.08743344,3575.2,3575.1,0.6706]
[1762818683250,2.88447975,3575.2,3575.1,1.161]
[1762818683451,2.88447975,3575.2,3575.1,0.012]
[1762818683452,3.37557975,3575.2,3575.1,0.012]
[1762818683646,4.08016009,3575.2,3575.1,0.012]
[1762818684448,4.05202818,3575.2,3575.1,0.012]
[1762818685055,4.08016009,3575.2,3575.1,0.012]
[1762818686068,4.05202818,3575.2,3575.1,0.012]
[1762818690474,3.56362818,3575.2,3575.1,0.012]
[1762818691103,4.04782818,3575.2,3575.1,0.012]
[1762818691250,4.16398452,3575.2,3575.1,0.012]
[1762818691449,4.67631643,3575.2,3575.1,0.012]
[1762818691746,4.64818452,3575.2,3575.1,1e-08]
[1762818691945,2.79720279,3575.0,3574.7,1e-08]
[1762818692180,3.26476329,3574.8,3574.7,1e-08]
[1762818692381,4.61190873,3574.8,3574.7,1e-08]
[1762818692570,5.69653452,3574.8,3574.7,1e-08]
[1762818695093,8.65797355,3574.8,3574.7,1e-08]
[1762818695244,10.53886903,3574.8,3574.7,1e-08]
[1762818696795,11.29100637,3574.8,3574.7,1e-08]
[1762818696968,10.53886903,3574.8,3574.7,1e-08]
[1762818697165,17.45068241,3574.8,3574.7,1e-08]
[1762818697782,14.48924338,3574.8,3574.7,1e-08]
[1762818697983,17.45068241,3574.8,3574.7,1e-08]
[1762818698710,4.4627318,3574.6,3574.5,1e-08]
[1762818698909,10.37404375,3574.6,3574.5,1e-08]
[1762818699121,11.58174013,3574.6,3574.5,1e-08]
[1762818699279,10.83011184,3574.6,3574.5,1e-08]
[1762818700128,11.58186255,3574.6,3574.5,1e-08]
[1762818700274,10.83011184,3574.6,3574.5,1e-08]
[1762818703195,11.83248619,3574.6,3574.5,1e-08]
[1762818703374,4.05754088,3574.2,3574.1,1e-08]
[1762818703575,9.23501017,3574.2,3574.1,1e-08]
[1762818703774,9.69107826,3574.2,3574.1,1e-08]
[1762818704210,8.93845263,3574.2,3574.1,1e-08]
[1762818707195,9.69051925,3574.2,3574.1,1e-08]
[1762818709905,9.20631925,3574.2,3574.1,1e-08]
[1762818710217,6.24488022,3574.2,3574.1,1e-08]
[1762818710641,6.72908022,3574.2,3574.1,1e-08]
[1762818714628,9.69051925,3574.2,3574.1,1e-08]
[1762818716362,9.69079875,3574.2,3574.1,0.00200001]
[1762818716517,9.69179875,3574.2,3574.1,0.00200001]
[1762818716718,9.20759875,3574.2,3574.1,0.00200001]
[1762818716917,9.69179875,3574.2,3574.1,0.00200001]
[1762818717338,2.79814203,3573.8,3573.7,0.002]
[1762818717546,4.1836026,3573.8,3573.7,0.002]
[1762818717714,6.3361186,3573.8,3573.7,0.002]
[1762818717916,6.30798669,3573.8,3573.7,0.002]
[1762818718162,7.31148753,3573.8,3573.7,0.002]
[1762818718734,7.42353219,3573.8,3573.7,0.002]
[1762818719361,7.42327737,3573.8,3573.7,0.002]
[1762818719557,6.42003135,3573.8,3573.7,0.002]
[1762818720239,5.93273135,3573.8,3573.7,0.002]
[1762818720442,6.42003135,3573.8,3573.7,0.002]
[1762818721179,7.06503135,3573.8,3573.7,0.002]
[1762818723945,6.57773135,3573.8,3573.7,0.002]
[1762818724145,8.06795843,3573.8,3573.7,0.002]
[1762818724473,7.06503135,3573.8,3573.7,0.002]
[1762818725186,10.01303135,3573.8,3573.7,0.002]
[1762818725698,10.01303135,3573.8,3572.7,0.002]
[1762818725699,4.05832388,3573.2,3572.7,0.002]
[1762818725898,2.86192521,3572.8,3572.7,0.002]
[1762818726195,3.57791635,3572.8,3572.7,0.002]
[1762818726560,3.51491635,3572.8,3572.7,0.002]
[1762818726763,3.51491635,3572.8,3572.7,0.4689]
[1762818727103,4.78970234,3572.8,3572.7,0.4689]
[1762818729977,6.54605025,3572.8,3572.7,0.002]
[1762818730167,7.00171834,3572.8,3572.7,0.002]
[1762818730370,8.22370433,3572.8,3572.7,0.002]
[1762818731012,8.22370433,3572.8,3572.3,0.002]
[1762818731013,2.7992386,3572.4,3572.3,1e-08]
[1762818731223,3.20497769,3572.1,3572.0,0.002]
[1762818731429,4.37353692,3572.1,3572.0,0.002]
[1762818731628,7.33497595,3572.1,3572.0,0.002]
[1762818732508,8.59468795,3572.1,3572.0,0.002]
[1762818732673,9.77480441,3572.1,3572.0,0.002]
[1762818733516,9.94010441,3572.1,3572.0,0.002]
[1762818734019,10.00160441,3572.1,3572.0,0.002]
[1762818734485,13.44824344,3572.1,3572.0,0.002]
[1762818735025,4.95916807,3572.0,3571.9,1e-08]
[1762818735196,10.4266208,3572.0,3571.9,1e-08]
[1762818735524,10.63938889,3572.0,3571.9,1e-08]
[1762818740527,10.75149635,3572.0,3571.9,1e-08]
[1762818741094,11.50255083,3572.0,3571.9,1e-08]
[1762818741295,10.75149635,3572.0,3571.9,1e-08]
[1762818742224,14.45055083,3572.0,3571.9,1e-08]
[1762818743256,10.89994428,3572.0,3571.1,0.01]
[1762818743563,2.80064975,3570.6,3570.4,0.1838]
[1762818743851,2.80064975,3570.6,3570.2,0.4701]
[1762818743852,4.55329919,3570.6,3570.2,0.4701]
[1762818744051,5.10029919,3570.6,3569.8,0.4701]
[1762818744233,5.28409919,3570.6,3569.8,0.4701]
[1762818744425,5.3122311,3570.6,3569.8,0.4701]
[1762818744637,6.76851716,3570.6,3569.8,0.4701]
[1762818744837,9.68838525,3570.6,3569.8,0.4701]
[1762818745759,9.38298525,3570.6,3569.1,0.01]
[1762818745960,9.98105692,3570.6,3569.9,0.6826]
[1762818746331,9.38298525,3570.6,3569.9,0.6826]
[1762818746827,9.98099575,3570.6,3569.9,0.6826]
[1762818747769,10.62699575,3570.6,3569.9,0.6826]
[1762818747931,10.62699575,3570.6,3570.0,0.4988]
[1762818748131,10.62699575,3570.6,3570.1,0.2107]
[1762818751629,10.62699575,3570.6,3570.1,0.7095]
[1762818751834,10.38539575,3570.6,3570.1,0.7095]
[1762818752381,2.80096353,3570.2,3570.1,0.2107]
[1762818752545,2.88839697,3570.2,3570.1,0.6955]
[1762818752945,2.88839697,3570.2,3570.1,1.1943]
[1762818754864,5.83839697,3570.2,3570.1,1.1943]
[1762818755194,2.88839697,3570.2,3570.1,1.1943]
[1762818758787,2.8885565,3570.2,3570.1,1.1943]
[1762818760461,3.48886847,3570.2,3570.1,1.1943]
[1762818761066,0.68790494,3570.2,3570.1,1.1943]
[1762818761361,0.74751255,3571.1,3570.1,5.09031899]
[1762818761591,2.80088507,3570.3,3570.2,0.4988]
[1762818761963,2.80088507,3570.3,3570.2,0.9836]
[1762818762664,2.80081776,3570.4,3570.2,0.9836]
[1762818763003,0.02813191,3570.9,3570.3,0.4988]
[1762818763199,2.80066024,3570.6,3570.3,0.4988]
[1762818763401,2.80080663,3570.4,3570.3,0.4988]
[1762818763764,2.80080663,3570.4,3570.3,0.9836]
[1762818764765,2.80041446,3570.9,3570.3,0.9836]
[1762818764962,2.80072818,3570.5,3570.4,0.4988]
[1762818765391,3.40203853,3570.5,3570.4,0.9836]
[1762818766700,2.80072818,3570.5,3570.4,0.9836]
[1762818767295,3.40218245,3570.5,3570.4,0.9836]
[1762818769729,3.40318245,3570.5,3570.4,0.9836]
[1762818771492,3.40318245,3570.5,3570.1,0.2107]
[1762818771493,2.80096353,3570.2,3570.1,0.2107]
[1762818771927,2.80096353,3570.2,3570.1,0.6955]
[1762818772093,2.80096353,3570.2,3570.1,1.1943]
[1762818772994,0.001,3570.5,3570.1,1.1943]
[1762818773208,2.80087495,3570.4,3570.2,0.4988]
[1762818773428,2.80088507,3570.3,3570.2,0.4988]
[1762818773804,2.80088507,3570.3,3570.2,0.9836]
[1762818776295,3.36114703,3570.3,3570.2,0.4848]
[1762818776994,2.80088507,3570.3,3570.2,0.4848]
[1762818778019,2.80096353,3570.2,3570.1,0.012]
[1762818778229,2.80786353,3570.2,3570.1,0.012]
[1762818778723,2.80096353,3570.2,3570.1,0.012]
[1762818778921,3.68975184,3570.2,3570.1,0.012]
[1762818779234,4.29211661,3570.2,3570.1,0.012]
[1762818779451,4.29211661,3570.2,3570.1,0.5097]
[1762818779594,3.68975184,3570.2,3570.1,1.1288]
[1762818781038,4.29190836,3570.2,3570.1,0.6522]
[1762818782748,4.29190836,3570.2,3570.1,1.1288]
[1762818784139,4.77800836,3570.2,3570.1,0.012]
[1762818784336,6.55015227,3570.2,3570.1,1e-08]
[1762818784541,7.27275592,3570.2,3570.1,1e-08]
[1762818784919,10.39773198,3570.2,3570.1,1e-08]
[1762818785314,6.44322436,3570.2,3570.1,1e-08]
[1762818785528,7.19395992,3570.2,3570.1,1e-08]
[1762818786464,7.67825992,3570.2,3570.1,1e-08]
[1762818786738,9.64699642,3570.2,3570.1,1e-08]
[1762818787318,13.59951108,3570.2,3570.1,1e-08]
[1762818787622,13.59951108,3570.2,3570.1,0.00200001]
[1762818788239,7.93003902,3570.2,3570.1,0.00200001]
[1762818788445,6.44322436,3570.2,3570.1,0.00200001]
[1762818788649,4.66283205,3570.2,3570.1,1.16060001]
[1762818788804,3.40312005,3570.2,3570.1,1.16060001]
[1762818789914,3.40312005,3570.2,3570.1,0.49970001]
[1762818790317,3.40312005,3570.2,3570.1,0.00200001]
[1762818790318,3.88922005,3570.2,3570.1,0.00200001]
[1762818790518,5.38861093,3570.2,3570.1,0.00200001]
[1762818791750,4.90431093,3570.2,3570.1,0.00200001]
[1762818791918,4.87617902,3570.2,3570.1,0.00200001]
[1762818792124,5.38861093,3570.2,3570.1,0.00200001]
[1762818792327,8.51358699,3570.2,3570.1,0.00200001]
[1762818792532,8.48545508,3570.2,3570.1,0.00200001]
[1762818792732,9.74516708,3570.2,3570.1,0.00200001]
[1762818792940,3.21368138,3569.8,3569.7,1e-08]
[1762818793249,5.13286064,3569.8,3569.7,1e-08]
[1762818794423,4.64856064,3569.8,3569.7,1e-08]
[1762818794617,5.13286064,3569.8,3569.7,1e-08]
[1762818794818,11.05248112,3569.8,3569.7,1e-08]
[1762818795123,8.25498112,3569.8,3569.7,1e-08]
[1762818795637,9.51469312,3569.8,3569.7,1e-08]
[1762818796355,10.26537616,3569.8,3569.7,1e-08]
[1762818798385,5.30516864,3569.8,3569.7,0.49770001]
[1762818798942,0.4314,3568.2,3566.7,0.1425]
[1762818799262,0.4314,3568.2,3566.8,0.4766]
[1762818799263,2.80331912,3567.2,3566.8,0.4766]
[1762818799581,2.80331912,3567.2,3566.7,0.1425]
[1762818799582,6.23247151,3567.2,3566.7,0.1425]
[1762818799722,6.23247151,3567.2,3566.1,0.01]
[1762818799723,4.31796729,3567.2,3566.5,0.4766]
[1762818799922,6.80378777,3567.2,3566.5,0.4766]
[1762818800174,6.80378777,3567.2,3567.1,0.5077]
[1762818800175,5.7729396,3567.2,3567.1,0.5077]
[1762818800335,2.80331912,3567.2,3567.1,1.1259]
[1762818801036,1.259712,3567.9,3567.1,1.1259]
[1762818801237,2.80331912,3567.2,3567.1,0.1516]
[1762818801540,2.8032623,3567.3,3567.1,0.6493]
[1762818801857,2.80331912,3567.2,3567.1,0.1516]
[1762818802358,2.80331912,3567.2,3567.1,1.1259]
[1762818804451,2.80331912,3567.2,3567.1,1.1279]
[1762818805045,2.80331912,3567.2,3567.1,0.6513]
[1762818805246,3.36396806,3567.2,3567.1,0.5097]
[1762818805455,3.36396806,3567.2,3567.1,0.012]
[1762818805456,4.27376806,3567.2,3567.1,0.012]
[1762818805754,5.53348006,3567.2,3567.1,0.012]
[1762818806425,4.62368006,3567.2,3567.1,0.4901]
[1762818807259,5.07238006,3567.2,3567.1,0.012]
[1762818807655,4.62368006,3567.2,3567.1,0.4901]
[1762818807961,4.62368006,3567.2,3567.1,0.012]
[1762818808144,4.62368006,3567.2,3567.1,0.4901]
[1762818809663,4.62368006,3567.2,3567.1,1.1112]
[1762818810062,4.62368006,3567.2,3567.1,0.6326]
[1762818810427,4.62368006,3567.2,3567.1,0.012]
[1762818812867,4.62368006,3567.2,3567.1,0.4901]
[1762818813465,4.62368006,3567.2,3567.1,0.012]
[1762818813670,5.07238006,3567.2,3567.1,0.012]
[1762818814666,4.62368006,3567.2,3567.1,0.012]
[1762818815351,5.07248006,3567.2,3567.1,0.012]
[1762818816748,2.80410521,3566.2,3566.1,0.01]
[1762818817203,2.80410521,3566.2,3566.1,0.9667]
[1762818817385,2.80410521,3566.2,3566.1,1.11]
[1762818817688,2.80410521,3566.2,3566.1,0.4881]
[1762818818088,2.80410521,3566.2,3566.1,0.01]
[1762818818287,2.80410521,3566.2,3566.1,0.4881]
[1762818820197,3.26330521,3566.2,3566.1,0.01]
[1762818820377,3.4108368,3566.2,3566.1,0.4881]
[1762818821474,2.80410521,3566.2,3566.1,0.4881]
[1762818822900,1.58089453,3566.8,3566.1,0.6323]
[1762818823197,2.8036335,3566.8,3566.7,0.4781]
[1762818823383,3.40076276,3566.8,3566.7,0.4781]
[1762818823617,3.40076276,3566.8,3566.7,0.9567]
[1762818823819,2.8036335,3566.8,3566.7,0.9567]
[1762818824221,3.40122484,3566.8,3566.7,0.9567]
[1762818825520,3.40122484,3566.8,3566.7,0.4781]
[1762818826903,3.40122484,3566.8,3566.7,0.9567]
[1762818827825,4.14711937,3566.8,3566.7,0.9567]
[1762818828132,3.40122484,3566.8,3566.7,0.9567]
[1762818829193,3.40122484,3566.8,3566.7,0.4781]
[1762818829847,3.40122484,3566.8,3566.7,0.9567]
[1762818832650,3.40122484,3566.8,3566.7,0.4781]
[1762818833223,3.40122484,3566.8,3566.7,0.9567]
[1762818833654,2.80394795,3566.4,3566.3,0.4786]
[1762818833953,2.80410521,3566.2,3566.1,0.012]
[1762818834245,3.40169655,3566.2,3566.1,0.012]
[1762818834448,4.61174205,3566.2,3566.1,0.012]
[1762818834649,4.15626198,3566.2,3566.1,0.012]
[1762818834852,5.61987664,3566.2,3566.1,0.012]
[1762818835049,5.02286598,3566.2,3566.1,1e-08]
[1762818835253,2.80489173,3565.2,3564.9,0.4934]
[1762818835421,3.40248307,3565.2,3564.9,0.4934]
[1762818835619,3.40248307,3565.2,3565.1,0.4689]
[1762818836025,3.40248307,3565.2,3565.1,1.1425]
[1762818836845,3.40248307,3565.2,3565.1,0.6491]
[1762818837143,3.40248307,3565.2,3565.1,0.4689]
[1762818837738,3.40248307,3565.2,3565.1,0.01]
[1762818837739,4.56186854,3565.2,3565.1,0.01]
[1762818837938,5.02266854,3565.2,3565.1,0.01]
[1762818838137,4.56186854,3565.2,3565.1,0.01]
[1762818838667,5.77324375,3565.2,3565.1,0.01]
[1762818838840,5.02266854,3565.2,3565.1,0.01]
[1762818839232,6.02343549,3565.2,3565.1,0.01]
[1762818840071,6.02343549,3565.2,3564.1,0.01]
[1762818840072,2.80567869,3564.2,3564.1,0.01]
[1762818840233,3.40327003,3564.2,3564.1,0.1648]
[1762818840433,3.85347003,3564.2,3564.1,0.01]
[1762818840933,3.40327003,3564.2,3564.1,0.01]
[1762818841135,3.40327003,3564.2,3564.1,0.466]
[1762818843547,3.40327003,3564.2,3564.1,0.9444]
[1762818844176,2.80567869,3564.2,3564.1,0.9444]
[1762818844373,2.80567869,3564.2,3564.1,0.466]
[1762818844674,3.25587869,3564.2,3564.1,0.01]
[1762818845174,2.80567869,3564.2,3564.1,0.466]
[1762818845672,0.7490353,3564.8,3564.1,0.9444]
[1762818845875,2.80521455,3564.8,3564.7,0.456]
[1762818846039,3.40329949,3564.8,3564.7,0.456]
[1762818847677,3.40329949,3564.8,3564.7,0.9344]
[1762818849253,2.80521455,3564.8,3564.7,0.9344]
[1762818852963,0.69578547,3565.2,3564.7,0.9344]
[1762818853164,2.80489173,3565.2,3565.1,0.6108]
[1762818853587,2.80489173,3565.2,3565.1,1.0892]
[1762818854083,2.80474559,3565.4,3565.1,1.0892]
[1762818854266,2.80466741,3565.5,3565.4,0.456]
[1762818854653,0.29536543,3566.2,3565.4,1.456]
[1762818854654,2.80455948,3565.7,3565.4,1.456]
[1762818854859,2.80446077,3565.8,3565.4,1.0]
[1762818855086,2.80446077,3565.8,3565.5,0.4784]
[1762818855278,2.80446077,3565.8,3565.7,0.456]
[1762818855477,2.80427025,3566.0,3565.7,0.9344]
[1762818855659,2.80427025,3566.0,3565.9,0.456]
[1762818856058,2.80427025,3566.0,3565.9,0.9344]
[1762818856693,0.4398,3566.0,3565.3,0.4784]
[1762818856891,0.4398,3566.0,3564.2,3.53147714]
[1762818856892,0.4353,3565.2,3564.3,0.4784]
[1762818857187,2.8049704,3565.1,3564.1,0.4884]
[1762818857385,2.80559812,3564.4,3564.1,0.4884]
[1762818857588,2.80559812,3564.4,3564.3,0.456]
[1762818858101,2.80567869,3564.2,3564.1,0.01]
[1762818858604,2.80567869,3564.2,3564.1,0.466]
[1762818859167,2.80567869,3564.2,3564.1,0.01]
[1762818859886,2.80567869,3564.2,3564.1,0.012]
[1762818860670,2.80567869,3564.2,3564.1,0.468]
[1762818860995,7.83416642,3565.6,3564.1,1.1012]
[1762818860996,1.260712,3565.1,3564.1,1.1012]
[1762818861217,1.260712,3565.1,3564.3,0.456]
[1762818861218,0.53976668,3565.0,3564.3,0.456]
[1762818861428,2.80552126,3564.4,3564.3,0.456]
[1762818861741,2.80567869,3564.2,3564.1,0.012]
[1762818864243,3.36679869,3564.2,3564.1,0.012]
[1762818865620,3.80679869,3564.2,3564.1,0.012]
[1762818866227,4.26709869,3564.2,3564.1,0.012]
[1762818866392,3.80679869,3564.2,3564.1,0.012]
[1762818867498,4.89536484,3564.2,3564.1,0.012]
[1762818869258,4.86723293,3564.2,3564.1,0.012]
[1762818870058,4.40693293,3564.2,3564.1,0.012]
[1762818870266,4.86723293,3564.2,3564.1,0.012]
[1762818871254,4.40693293,3564.2,3564.1,0.012]
[1762818871617,4.86723293,3564.2,3564.1,0.012]
[1762818873024,4.40693293,3564.2,3564.1,0.012]
[1762818873733,4.86723293,3564.2,3564.1,0.012]
[1762818874276,4.40693293,3564.2,3564.1,0.012]
[1762818874775,4.86723293,3564.2,3564.1,0.012]
[1762818875062,4.40693293,3564.2,3564.1,0.012]
[1762818875548,4.86723293,3564.2,3564.1,0.012]